bitfinex-derivatives/quotes_SOLF0:USTF0_20250716
["timestamp","ask_amount","ask_price","bid_price","bid_amount"]
[1752664700505,4.13716791,166.25,166.21,519.32]
[1752664700804,4.13716791,166.25,166.22,173.54]
[1752664702506,4.13716791,166.25,166.21,519.32]
[1752664702706,4.13716791,166.25,166.23,173.54]
[1752664703203,4.13716791,166.25,166.21,519.32]
[1752664703404,4.13716791,166.25,166.22,173.58]
[1752664705209,124.0,166.3,166.22,173.58]
[1752664705507,4.13716791,166.24,166.22,173.58]
[1752664707105,4.13716791,166.24,166.21,519.32]
[1752664707308,4.13716791,166.23,166.22,173.58]
[1752664709107,124.0,166.3,166.22,173.58]
[1752664709402,4.13716791,166.26,166.22,173.58]
[1752664710906,4.13716791,166.24,166.22,173.58]
[1752664711506,4.13716791,166.25,166.22,173.58]
[1752664711711,4.13716791,166.27,166.22,173.58]
[1752664713909,4.13716791,166.25,166.21,519.32]
[1752664714112,4.13716791,166.25,166.22,173.62]
[1752664714711,4.13716791,166.25,166.21,519.32]
[1752664714912,4.13716791,166.25,166.23,173.62]
[1752664716414,124.0,166.3,166.23,173.62]
[1752664716617,4.13716791,166.26,166.23,173.62]
[1752664717915,128.13716791,166.3,166.23,173.62]
[1752664718116,124.0,166.3,166.24,4.13716791]
[1752664718317,124.0,166.3,166.25,173.62]
[1752664719616,4.13716791,166.32,166.25,173.62]
[1752664720019,16.00911958,166.38,166.26,4.13716791]
[1752664720214,4.13716791,166.34,166.27,173.62]
[1752664721117,124.0,166.33,166.27,173.62]
[1752664721514,124.0,166.33,166.26,4.13716791]
[1752664721819,124.0,166.33,166.27,173.6]
[1752664725822,124.0,166.33,166.27,177.73716791]
[1752664728320,124.0,166.33,166.28,4.13716791]
[1752664729022,124.0,166.33,166.29,173.58]
[1752664732026,4.13716791,166.35,166.29,173.58]
[1752664732524,124.0,166.34,166.29,173.58]
[1752664732726,124.0,166.34,166.3,173.56]
[1752664736028,4.13716791,166.33,166.3,173.56]
[1752664736224,4.13716791,166.33,166.28,173.56]
[1752664736730,124.0,166.32,166.28,173.56]
[1752664737628,128.13716791,166.32,166.28,173.56]
[1752664737927,4.13716791,166.3,166.28,173.56]
[1752664738129,4.13716791,166.3,166.21,519.32]
[1752664738329,4.13716791,166.27,166.22,173.56]
[1752664739031,128.13716791,166.32,166.22,173.56]
[1752664739032,4.13716791,166.25,166.22,173.56]
[1752664749244,4.13716791,166.25,166.23,173.6]
[1752664749945,4.13716791,166.25,166.1,5.01007102]
[1752664750146,4.13716791,166.22,166.14,4.13716791]
[1752664750348,4.13716791,166.22,166.15,173.6]
[1752664751139,4.13716791,166.24,166.16,4.13716791]
[1752664751447,128.13716791,166.32,166.16,4.13716791]
[1752664751646,4.13716791,166.24,166.16,4.13716791]
[1752664753848,4.13716791,166.24,166.17,173.88]
[1752664754351,128.13716791,166.32,166.18,4.13716791]
[1752664754352,4.13716791,166.26,166.18,4.13716791]
[1752664754856,124.0,166.32,166.22,4.13716791]
[1752664755154,4.13716791,166.3,166.23,173.86]
[1752664755347,4.13716791,166.3,166.24,173.86]
[1752664755552,4.13716791,166.28,166.24,173.86]
[1752664755748,4.13716791,166.26,166.24,173.94]
[1752664757452,4.13716791,166.26,166.22,173.92]
[1752664757654,4.13716791,166.24,166.22,173.92]
[1752664758351,4.13716791,166.24,166.13,519.66]
[1752664758546,4.13716791,166.2,166.14,173.92]
[1752664761558,4.13716791,166.2,166.13,519.66]
[1752664761755,4.13716791,166.2,166.15,173.98]
[1752664762157,141.52459201,166.32,166.15,173.98]
[1752664762457,4.13716791,166.21,166.15,173.98]
[1752664766161,4.13716791,166.23,166.15,173.98]
[1752664767257,4.13716791,166.23,166.16,4.13716791]
[1752664770863,128.13716791,166.32,166.15,178.11716791]
[1752664771058,4.13716791,166.23,166.15,178.11716791]
[1752664776460,4.13716791,166.23,166.15,173.98]
[1752664776767,4.13716791,166.23,166.16,4.13716791]
[1752664778368,4.13716791,166.23,166.15,173.98]
[1752664778567,4.13716791,166.23,166.16,4.13716791]
[1752664783272,4.13716791,166.26,166.18,4.13716791]
[1752664783470,4.13716791,166.26,166.19,173.74]
[1752664783660,4.13716791,166.28,166.2,4.13716791]
[1752664784666,4.13716791,166.29,166.22,4.13716791]
[1752664784965,4.13716791,166.29,166.23,173.8]
[1752664791569,4.13716791,166.27,166.23,173.8]
[1752664794670,128.13716791,166.32,166.23,173.8]
[1752664794969,4.13716791,166.27,166.23,173.8]
[1752664795468,4.13716791,166.25,166.23,173.8]
[1752664796771,141.52459201,166.32,166.23,173.8]
[1752664796973,4.13716791,166.26,166.23,173.8]
[1752664798571,4.13716791,166.26,166.23,173.8430585]
[1752664798968,4.18090295,166.26,166.23,173.8430585]
[1752664801075,4.18090295,166.26,166.23,0.0430585]
[1752664801275,4.18090295,166.26,166.23,173.6830585]
[1752664801770,4.18090295,166.26,166.23,0.0430585]
[1752664801974,4.18090295,166.26,166.23,173.6830585]
[1752664803475,4.13716791,166.24,166.23,173.6830585]
[1752664803777,4.13716791,166.24,166.23,0.0430585]
[1752664803977,4.13716791,166.24,166.2,173.64]
[1752664804177,4.13716791,166.22,166.2,173.64]
[1752664810381,4.13716791,166.22,166.18,173.66]
[1752664810582,4.13716791,166.2,166.18,173.66]
[1752664819291,0.0384668,166.21,166.18,173.66]
[1752664820586,4.13716791,166.2,166.18,173.66]
[1752664832294,0.0384668,166.21,166.18,173.66]
[1752664832500,0.0384668,166.21,166.18,177.79716791]
[1752664836598,358.0,166.31,166.2,4.13716791]
[1752664836599,4.13716791,166.29,166.2,4.13716791]
[1752664836804,4.13716791,166.29,166.22,4.13716791]
[1752664836997,4.13716791,166.29,166.23,173.68]
[1752664838504,4.13716791,166.27,166.24,173.66]
[1752664839199,4.13716791,166.27,166.2,4.13716791]
[1752664839506,4.13716791,166.27,166.19,4.13716791]
[1752664839704,4.13716791,166.25,166.2,173.66]
[1752664839900,4.13716791,166.25,166.17,4.13716791]
[1752664840105,4.13716791,166.25,166.18,173.66]
[1752664845109,4.13716791,166.23,166.18,173.66]
[1752664845309,4.13716791,166.23,166.15,4.13716791]
[1752664845510,4.13716791,166.23,166.16,173.66]
[1752664845710,13.3874241,166.29,166.16,173.66]
[1752664845909,4.13716791,166.23,166.16,173.66]
[1752664846309,4.13716791,166.23,166.15,4.13716791]
[1752664846609,4.13716791,166.23,166.17,173.66]
[1752664849313,4.13716791,166.21,166.17,173.66]
[1752664850516,4.13716791,166.21,166.13,519.74]
[1752664850814,4.13716791,166.21,166.14,173.66]
[1752664851014,4.13716791,166.21,166.13,519.74]
[1752664851615,4.13716791,166.21,166.14,177.79716791]
[1752664851816,4.13716791,166.23,166.14,177.79716791]
[1752664852513,4.13716791,166.23,166.15,173.66]
[1752664854413,4.13716791,166.23,166.14,4.13716791]
[1752664854414,4.13716791,166.23,166.16,173.66]
[1752664856715,4.13716791,166.23,166.17,173.66]
[1752664856917,4.13716791,166.21,166.17,173.66]
[1752664857513,4.13716791,166.21,166.13,523.87716791]
[1752664857712,4.13716791,166.21,166.14,173.66]
[1752664858317,13.3874241,166.27,166.15,4.13716791]
[1752664858318,4.13716791,166.23,166.15,4.13716791]
[1752664859323,4.13716791,166.23,166.16,173.66]
[1752664861122,4.13716791,166.24,166.16,173.66]
[1752664865219,13.3874241,166.29,166.16,173.66]
[1752664865422,4.13716791,166.23,166.16,173.66]
[1752664867326,4.13716791,166.21,166.16,173.66]
[1752664868026,4.13716791,166.21,166.13,523.87716791]
[1752664868223,4.13716791,166.21,166.14,173.64]
[1752664868424,4.13716791,166.21,166.13,523.87716791]
[1752664868625,4.13716791,166.21,166.14,173.64]
[1752664869622,4.13716791,166.21,166.15,173.64]
[1752664869818,4.13716791,166.21,166.16,173.64]
[1752664870927,4.13716791,166.23,166.16,173.64]
[1752664871920,0.04320605,166.21,166.16,173.64]
[1752664872728,0.04320605,166.21,166.17,0.03980094]
[1752664877828,0.04320605,166.21,166.19,4.13716791]
[1752664878027,0.04320605,166.21,166.2,173.64]
[1752664888840,0.04320605,166.21,166.17,0.03980094]
[1752664889041,0.04320605,166.21,166.18,173.62]
[1752664893940,4.18037396,166.21,166.17,0.03980094]
[1752664894147,4.13716791,166.19,166.18,173.6]
[1752664897348,4.13716791,166.19,166.17,0.03980094]
[1752664897651,4.13716791,166.19,166.14,173.6]
[1752664897850,4.13716791,166.16,166.14,173.6]
[1752664901850,0.04559699,166.17,166.14,173.6]
[1752664918853,0.04559699,166.17,166.14,177.73716791]
[1752664920248,0.04559699,166.17,166.14,173.6]
[1752664920755,0.04559699,166.17,166.15,173.64]
[1752664920956,0.04559699,166.17,166.13,519.74]
[1752664921160,4.1827649,166.17,166.13,519.74]
[1752664921457,4.1827649,166.17,166.14,173.64]
[1752664923059,0.04559699,166.17,166.14,173.64]
[1752664924666,0.04559699,166.17,166.15,173.64]
[1752664924865,0.04559699,166.17,166.16,173.64]
[1752664936966,2.69828145,166.17,166.16,173.64]
[1752664945070,0.04559699,166.17,166.16,173.64]
[1752664947467,2.69828145,166.17,166.13,2.65268446]
[1752664947769,2.65268446,166.15,166.13,173.64]
[1752664949472,2.65268446,166.15,166.11,2.65268446]
[1752664949473,2.65268446,166.14,166.1,2.65268446]
[1752664949670,2.65268446,166.14,166.11,173.64]
[1752664950272,2.65268446,166.13,166.11,173.64]
[1752664951677,0.04391641,166.14,166.11,173.64]
[1752664951867,2.65268446,166.13,166.12,6.00252191]
[1752664952970,4.19031896,166.14,166.12,6.00252191]
[1752664953175,4.19031896,166.14,166.13,6.00252191]
[1752664953573,4.19031896,166.14,166.11,173.64]
[1752664953872,4.19031896,166.14,166.12,5.99782779]
[1752664954073,4.19031896,166.14,166.11,173.64]
[1752664954277,4.19031896,166.14,166.12,5.99774722]
[1752664954570,4.19031896,166.14,166.11,173.64]
[1752664954778,4.19031896,166.14,166.12,5.99720398]
[1752664954976,4.19031896,166.14,166.11,173.64]
[1752664955176,4.19031896,166.14,166.12,5.99720398]
[1752664955476,4.19031896,166.14,166.11,173.64]
[1752664955676,0.04391641,166.14,166.12,5.99665988]
[1752664955871,4.14640255,166.12,166.1,173.64]
[1752664956177,4.14640255,166.12,166.08,519.96]
[1752664956478,4.14640255,166.1,166.08,173.64]
[1752664960778,0.04176773,166.11,166.08,173.64]
[1752664962780,0.04176773,166.11,166.09,173.66]
[1752664963182,4.14640255,166.12,166.09,173.66]
[1752664963477,4.19128207,166.12,166.09,173.66]
[1752664969789,4.19128207,166.12,166.06,4.14640255]
[1752664970083,4.19128207,166.12,166.07,173.66]
[1752664970689,0.04487952,166.12,166.07,173.66]
[1752664970888,4.19128207,166.12,166.07,173.66]
[1752664974993,2.65453652,166.1,166.07,173.66]
[1752664977501,2.65453652,166.1,166.06,2.65453652]
[1752664977699,2.65453652,166.1,166.07,173.66]
[1752664977900,2.65453652,166.09,166.07,173.66]
[1752664978504,2.65453652,166.09,166.06,2.65453652]
[1752664978701,2.65453652,166.09,166.07,173.66]
[1752664979695,2.65453652,166.08,166.0,521.04767209]
[1752664979900,2.65453652,166.07,166.03,2.65453652]
[1752664980097,13.3874241,166.18,166.03,2.65453652]
[1752664980301,2.65453652,166.07,166.03,2.65453652]
[1752664980602,2.65453652,166.06,166.01,173.66]
[1752664980800,2.69372365,166.07,166.02,2.65453652]
[1752664981593,2.69372365,166.07,166.01,173.66]
[1752664981792,2.69372365,166.07,166.02,2.65453652]
[1752664983105,2.69372365,166.07,166.01,173.66]
[1752664983401,2.69372365,166.07,166.02,2.65453652]
[1752664984103,2.69372365,166.07,166.03,2.65453652]
[1752664984702,2.65453652,166.05,166.0,520.0]
[1752664984906,0.03918713,166.07,166.02,2.65453652]
[1752664984907,2.65453652,166.06,166.02,2.65453652]
[1752664985107,2.69372365,166.07,166.02,2.65453652]
[1752664987408,2.69372365,166.07,166.01,173.66]
[1752664987614,2.69372365,166.07,166.03,2.65453652]
[1752664987805,0.03918713,166.07,166.05,2.65453652]
[1752664988005,0.03918713,166.07,166.06,173.66]
[1752664990811,0.03918713,166.07,166.05,2.65453652]
[1752664990812,0.03918713,166.07,166.04,2.65453652]
[1752664991006,0.03918713,166.07,166.06,173.66]
[1752664991208,0.03918713,166.07,166.04,2.65453652]
[1752664991712,2.69372365,166.07,166.05,173.66]
[1752664991909,2.69372365,166.07,166.0,520.0]
[1752664992110,2.69372365,166.07,166.02,2.65453652]
[1752664992305,2.69372365,166.07,166.0,520.0]
[1752664992512,2.69372365,166.07,166.02,2.65453652]
[1752664992812,2.69372365,166.07,166.03,176.29453652]
[1752664993114,2.69372365,166.07,166.0,520.0]
[1752664993314,2.69372365,166.07,166.03,2.65453652]
[1752664993613,2.69372365,166.07,166.01,173.64]
[1752664993813,2.69372365,166.07,166.03,2.65453652]
[1752664995710,0.03918713,166.07,166.04,2.65453652]
[1752664995913,0.03918713,166.07,166.05,173.66]
[1752664999209,0.03918713,166.07,166.06,2.65453652]
[1752665003023,0.03918713,166.07,166.05,173.66]
[1752665003219,0.03918713,166.07,166.06,2.65453652]
[1752665004220,0.03918713,166.07,166.05,173.66]
[1752665004414,0.03918713,166.07,166.05,176.31453652]
[1752665013626,0.03918713,166.07,166.05,173.66]
[1752665013826,0.03918713,166.07,166.05,176.31453652]
[1752665014523,0.03918713,166.07,166.06,2.65453652]
[1752665017628,0.03918713,166.07,166.06,8.9714532]
[1752665018829,2.65453652,166.12,166.06,8.9714532]
[1752665019027,2.65453652,166.12,166.08,2.65453652]
[1752665019230,2.65453652,166.12,166.09,179.91707971]
[1752665019429,2.65453652,166.12,166.1,6.31707971]
[1752665019627,2.65453652,166.12,166.09,173.6]
[1752665019928,2.65453652,166.12,166.1,6.31717196]
[1752665020130,2.65453652,166.12,166.09,173.6]
[1752665020429,2.65453652,166.12,166.1,6.31708287]
[1752665020629,2.65453652,166.12,166.09,173.6]
[1752665020821,13.3874241,166.18,166.1,6.3171757]
[1752665021024,2.65453652,166.12,166.09,173.6]
[1752665021221,2.65453652,166.12,166.1,6.3171753]
[1752665021428,13.3874241,166.18,166.09,173.6]
[1752665021625,13.3874241,166.21,166.12,2.65453652]
[1752665021928,2.65453652,166.18,166.13,179.89717919]
[1752665022229,2.65453652,166.19,166.14,8.97171571]
[1752665022431,0.0383826,166.17,166.15,6.31717919]
[1752665022729,0.0383826,166.17,166.14,2.65453652]
[1752665022932,0.0383826,166.17,166.15,6.30938692]
[1752665023121,0.0383826,166.17,166.14,2.65453652]
[1752665023433,0.0383826,166.17,166.15,6.3065809]
[1752665023628,0.0383826,166.17,166.14,2.65453652]
[1752665023829,0.0383826,166.17,166.15,6.30629941]
[1752665024028,0.0383826,166.17,166.14,2.65453652]
[1752665024328,0.0383826,166.17,166.15,6.30629775]
[1752665024528,0.0383826,166.17,166.14,2.65453652]
[1752665024830,0.0383826,166.17,166.15,6.30341412]
[1752665025031,0.0383826,166.17,166.14,2.65453652]
[1752665025333,0.0383826,166.17,166.15,6.30333854]
[1752665025632,0.0383826,166.17,166.14,2.65453652]
[1752665025831,0.0383826,166.17,166.15,6.3006265]
[1752665026031,0.0383826,166.17,166.14,2.65453652]
[1752665026223,0.0383826,166.17,166.15,6.3006265]
[1752665026422,0.0383826,166.17,166.14,2.65453652]
[1752665026632,0.0383826,166.17,166.15,6.29838844]
[1752665026833,0.0383826,166.17,166.14,2.65453652]
[1752665027029,0.0383826,166.17,166.15,6.29809072]
[1752665027233,0.0383826,166.17,166.14,2.65453652]
[1752665027832,0.0383826,166.17,166.15,6.29599941]
[1752665028135,0.0383826,166.17,166.16,2.65453652]
[1752665032836,0.0383826,166.17,166.15,2.65453652]
[1752665038930,0.0383826,166.17,166.11,520.06]
[1752665038931,2.69291912,166.17,166.11,520.06]
[1752665039136,2.69291912,166.17,166.12,179.78100251]
[1752665039433,2.69291912,166.17,166.13,8.93553903]
[1752665039637,0.0383826,166.17,166.13,2.65453652]
[1752665040233,0.0383826,166.17,166.12,173.5]
[1752665040434,2.69291912,166.17,166.13,6.28188208]
[1752665040637,2.65453652,166.16,166.12,176.15453652]
[1752665040836,2.65453652,166.16,166.13,6.28188208]
[1752665041037,2.65453652,166.16,166.12,176.15453652]
[1752665041338,2.65453652,166.16,166.13,6.28188208]
[1752665041635,2.65453652,166.16,166.12,176.15453652]
[1752665042237,2.65453652,166.16,166.13,6.31479695]
[1752665042436,2.69291912,166.17,166.12,176.15453652]
[1752665042630,2.69291912,166.17,166.13,6.31498642]
[1752665042838,2.69291912,166.17,166.12,176.15453652]
[1752665043039,2.69291912,166.17,166.13,6.31498642]
[1752665043239,2.69291912,166.17,166.13,2.65453652]
[1752665043936,2.69291912,166.17,166.14,173.48]
[1752665047041,0.0383826,166.17,166.14,173.48]
[1752665047245,2.65453652,166.16,166.14,173.48]
[1752665049045,0.0383826,166.17,166.14,173.48]
[1752665049244,2.65453652,166.16,166.14,173.48]
[1752665052046,2.69291912,166.17,166.14,173.48]
[1752665055546,0.0383826,166.17,166.14,173.48]
[1752665055747,2.69291912,166.17,166.14,173.48]
[1752665057948,0.0383826,166.17,166.15,2.65453652]
[1752665058451,0.0383826,166.17,166.16,6.33205027]
[1752665060443,0.0383826,166.17,166.16,8.98658679]
[1752665061651,0.0383826,166.17,166.16,8.98915577]
[1752665061847,0.0383826,166.17,166.16,6.33461925]
[1752665062150,0.0383826,166.17,166.16,182.44915577]
[1752665063350,0.0383826,166.17,166.16,179.79461925]
[1752665064047,2.69291912,166.17,166.16,6.33461925]
[1752665064349,2.69291912,166.17,166.16,173.44]
[1752665064549,0.0383826,166.17,166.16,179.7757171]
[1752665064852,2.69291912,166.17,166.16,179.7757171]
[1752665065547,2.69291912,166.17,166.16,173.44]
[1752665066354,2.69291912,166.17,166.16,179.78251756]
[1752665069056,2.69291912,166.17,166.16,6.34251756]
[1752665069260,2.69291912,166.17,166.14,173.92]
[1752665069457,2.65453652,166.15,166.14,173.92]
[1752665070955,4.1469692,166.15,166.14,173.92]
[1752665075763,0.0383826,166.17,166.14,173.92]
[1752665076063,4.1469692,166.16,166.14,173.92]
[1752665079462,4.1853518,166.17,166.14,173.92]
[1752665079964,0.0383826,166.17,166.14,173.92]
[1752665080267,4.1853518,166.17,166.14,173.92]
[1752665080764,0.0383826,166.17,166.14,173.92]
[1752665082062,0.0383826,166.17,166.14,178.0669692]
[1752665084068,0.0383826,166.17,166.11,520.06]
[1752665084270,4.1853518,166.17,166.11,520.06]
[1752665084569,4.1853518,166.17,166.12,174.18]
[1752665084969,4.1469692,166.15,166.07,117.84627138]
[1752665085174,4.1469692,166.13,166.08,174.16]
[1752665090578,4.146666,166.16,166.08,174.16]
[1752665090975,4.146666,166.14,166.08,174.16]
[1752665091175,4.14685218,166.12,166.09,174.16]
[1752665091375,4.14685218,166.16,166.09,174.16]
[1752665091579,4.14685218,166.13,166.09,174.16]
[1752665096178,13.3874241,166.21,166.09,174.16]
[1752665096379,4.14685218,166.18,166.1,4.14685218]
[1752665096573,4.14685218,166.21,166.09,174.16]
[1752665096773,4.14685218,166.21,166.13,4.14685218]
[1752665096983,533.3274241,166.27,166.14,174.32]
[1752665097183,4.14685218,166.22,166.14,174.32]
[1752665098877,4.14685218,166.2,166.15,174.38]
[1752665100684,533.3274241,166.27,166.15,174.38]
[1752665100884,4.14685218,166.21,166.15,174.38]
[1752665104787,519.94,166.27,166.15,174.38]
[1752665104988,4.14685218,166.22,166.15,174.38]
[1752665106888,4.14685218,166.2,166.08,4.14685218]
[1752665107087,4.14685218,166.2,166.11,4.14685218]
[1752665109787,4.14685218,166.2,166.12,174.2]
[1752665111587,4.14685218,166.2,166.06,520.0]
[1752665111588,4.14685218,166.18,166.13,174.14]
[1752665111787,4.14685218,166.18,166.12,174.14]
[1752665112684,4.14685218,166.2,166.12,174.14]
[1752665113090,4.14685218,166.2,166.12,178.28685218]
[1752665113491,4.14685218,166.24,166.12,178.28685218]
[1752665113786,4.14685218,166.19,166.12,178.28685218]
[1752665116396,13.3874241,166.25,166.12,178.28685218]
[1752665116694,4.14685218,166.21,166.12,178.28685218]
[1752665117595,13.3874241,166.27,166.12,178.28685218]
[1752665117796,4.14685218,166.21,166.12,178.28685218]
[1752665123201,14.43460754,166.28,166.12,178.28685218]
[1752665123403,4.14685218,166.21,166.12,178.28685218]
[1752665126602,4.14685218,166.22,166.14,4.14685218]
[1752665128604,14.43460754,166.28,166.14,4.14685218]
[1752665128805,4.14685218,166.23,166.14,4.14685218]
[1752665129209,4.14685218,166.23,166.12,174.14]
[1752665129406,4.14685218,166.23,166.16,4.14685218]
[1752665129608,4.14685218,166.23,166.17,173.98]
[1752665131408,4.14685218,166.23,166.18,174.06]
[1752665131901,4.14685218,166.25,166.18,174.06]
[1752665132509,4.14685218,166.25,166.18,178.20685218]
[1752665133809,545.5474241,166.31,166.18,178.20685218]
[1752665134005,4.14685218,166.28,166.2,4.14685218]
[1752665134704,358.0,166.31,166.2,4.14685218]
[1752665134907,4.14685218,166.28,166.2,4.14685218]
[1752665136213,358.0,166.31,166.2,4.14685218]
[1752665136410,4.14685218,166.29,166.22,4.14685218]
[1752665136608,4.14685218,166.3,166.22,4.14685218]
[1752665140515,4.14685218,166.28,166.2,4.14685218]
[1752665140819,4.14685218,166.26,166.11,543.07170637]
[1752665141022,4.14685218,166.22,166.12,4.89921444]
[1752665141219,4.14685218,166.22,166.13,178.30685218]
[1752665142324,13.3874241,166.3,166.15,4.14685218]
[1752665142520,4.14685218,166.24,166.15,4.14685218]
[1752665145422,4.14685218,166.22,166.13,174.16]
[1752665145622,4.14685218,166.22,166.13,178.30685218]
[1752665145920,4.14685218,166.2,166.13,174.16]
[1752665146721,4.14685218,166.18,166.13,174.16]
[1752665150020,4.14685218,166.24,166.13,174.16]
[1752665150222,4.14685218,166.18,166.13,174.16]
[1752665155431,13.3874241,166.27,166.13,174.16]
[1752665155623,4.14685218,166.19,166.13,174.16]
[1752665162530,4.14685218,166.24,166.13,174.16]
[1752665162833,4.14685218,166.19,166.13,174.16]
[1752665164641,4.14685218,166.24,166.13,174.16]
[1752665164837,4.14685218,166.19,166.13,174.16]
[1752665165837,13.3874241,166.27,166.13,178.30685218]
[1752665166039,4.14685218,166.22,166.13,178.30685218]
[1752665166641,4.14685218,166.24,166.15,4.14685218]
[1752665168241,4.14685218,166.24,166.13,174.16]
[1752665168443,4.14685218,166.24,166.15,4.14685218]
[1752665168943,4.14685218,166.24,166.13,174.16]
[1752665169242,4.14685218,166.24,166.15,4.14685218]
[1752665170638,4.14685218,166.22,166.13,178.30685218]
[1752665170834,4.14685218,166.2,166.13,178.30685218]
[1752665171332,4.14685218,166.2,166.13,174.16]
[1752665171532,4.14685218,166.18,166.11,519.96]
[1752665171734,4.14685218,166.18,166.11,694.04]
[1752665172343,4.14685218,166.16,166.11,694.04]
[1752665175646,4.14685218,166.14,166.11,694.04]
[1752665175943,4.14685218,166.14,166.11,174.08]
[1752665177753,4.14688675,166.15,166.11,174.08]
[1752665178946,4.14688675,166.15,166.12,174.0]
[1752665188357,13.3874241,166.22,166.12,174.0]
[1752665188656,4.14688675,166.17,166.12,174.0]
[1752665189965,4.14688675,166.15,166.12,174.0]
[1752665192865,13.3874241,166.21,166.12,174.0]
[1752665193162,4.14688675,166.15,166.12,174.0]
[1752665195565,4.14643058,166.15,166.12,174.0]
[1752665202965,2.65356296,166.14,166.12,174.0]
[1752665204767,13.3874241,166.21,166.1,2.65356296]
[1752665204969,2.65356296,166.14,166.1,176.51356296]
[1752665206067,2.65356296,166.14,166.1,173.86]
[1752665207873,2.65356296,166.14,166.1,176.51356296]
[1752665208269,2.65356296,166.13,166.1,176.51356296]
[1752665208771,2.65356296,166.13,166.1,173.86]
[1752665208968,2.65356296,166.12,166.05,519.96]
[1752665209163,13.3874241,166.18,166.06,2.65356296]
[1752665209369,2.65356296,166.12,166.08,2.65356296]
[1752665210071,2.65356296,166.13,166.09,2.65356296]
[1752665210272,2.65356296,166.14,166.09,2.65356296]
[1752665211665,13.3874241,166.21,166.09,2.65356296]
[1752665211870,2.65356296,166.14,166.09,2.65356296]
[1752665212572,2.6534042,166.15,166.1,2.6534042]
[1752665216480,13.3874241,166.19,166.1,2.6534042]
[1752665216771,2.6534042,166.15,166.1,2.6534042]
[1752665218374,13.3874241,166.19,166.1,2.6534042]
[1752665218674,2.6534042,166.16,166.1,2.6534042]
[1752665219170,13.3874241,166.2,166.1,2.6534042]
[1752665219371,2.6534042,166.16,166.1,2.6534042]
[1752665219870,13.3874241,166.2,166.12,2.6534042]
[1752665220064,2.6534042,166.16,166.12,2.6534042]
[1752665220372,2.6534042,166.16,166.07,173.78]
[1752665220875,2.6534042,166.16,166.1,2.6534042]
[1752665221173,2.6534042,166.16,166.11,173.96]
[1752665221577,0.0386519,166.15,166.11,173.96]
[1752665224779,2.65332348,166.14,166.11,173.96]
[1752665224979,2.65332348,166.14,166.1,173.94]
[1752665225369,5.00173524,166.14,166.1,173.94]
[1752665226183,2.65332348,166.14,166.1,173.94]
[1752665226379,5.00158468,166.14,166.09,2.65332348]
[1752665226570,5.00158468,166.14,166.09,176.55332348]
[1752665227476,2.3482612,166.14,166.11,2.65332348]
[1752665227880,2.3482612,166.14,166.11,2.65309341]
[1752665228979,0.0386519,166.15,166.11,2.65309341]
[1752665229178,2.386972,166.15,166.11,2.65309341]
[1752665230383,0.0386519,166.15,166.11,2.65309341]
[1752665230582,0.0386519,166.15,166.13,2.65309341]
[1752665231080,0.0386519,166.15,166.12,2.65309341]
[1752665231282,2.386972,166.15,166.12,2.65309341]
[1752665231472,0.0386519,166.15,166.12,2.65309341]
[1752665231675,2.386972,166.15,166.12,2.65309341]
[1752665231880,0.0386519,166.15,166.12,2.65309341]
[1752665232179,2.386972,166.15,166.12,2.65309341]
[1752665232380,0.0386519,166.15,166.12,2.65309341]
[1752665233175,0.0386519,166.15,166.14,2.65309341]
[1752665234679,2.65309341,166.21,166.14,2.65309341]
[1752665234975,4.14255798,166.23,166.15,178.14255798]
[1752665235280,4.14255798,166.23,166.16,6.35481525]
[1752665235481,4.14255798,166.23,166.17,6.35481525]
[1752665235675,4.14255798,166.23,166.18,6.35481525]
[1752665235880,4.14255798,166.23,166.19,6.35481525]
[1752665236081,4.14246018,166.23,166.18,0.04111241]
[1752665236281,4.14246018,166.23,166.19,6.35095896]
[1752665236482,4.14246018,166.23,166.18,0.04111241]
[1752665236682,4.14246018,166.23,166.19,6.34806325]
[1752665236884,4.14246018,166.23,166.18,0.04111241]
[1752665237083,4.14246018,166.23,166.19,6.34806325]
[1752665237279,4.14246018,166.23,166.18,0.04111241]
[1752665237487,4.14246018,166.23,166.19,6.34592033]
[1752665237688,4.14246018,166.23,166.18,0.04111241]
[1752665238188,13.3874241,166.27,166.18,0.04111241]
[1752665238379,4.14246018,166.23,166.18,0.04111241]